Cogmind - Beta 16 @@@ ROGUE MODE // 2025.11.06 @ 17:25:14 Player: Nika Jay Result: Destroyed by C-35 Carver with Carbide Saw Performance ------------- Evolutions (5) 2500 Regions Visited (14) 2800 Robots Destroyed (150) 750 Value Destroyed (5151) 5151 Prototype IDs (31) 620 Alien Tech Used (0) 0 Bonus (1320) 1320 TOTAL SCORE: 13141 Bonus ------- High Alert Combat Kills 220 Registered with UFD 300 Met Optimus in HQ 500 Met Data Miner 300 Cogmind --------- Core Integrity 0/1000 Matter 292/300 Energy 100/100 System Corruption 16% Temperature Cool (0) Movement Core (50) Location -5/Factory Parts ------- > --- POWER (2) -------- (None) > --- PROPULSION (6) --- (None) > --- UTILITY (7) ------ (None) > --- WEAPON (2) ------- (None) > --- INVENTORY (5) ---- Armored Huge Wheel Advanced Heat Sink Layered Medium Armor Plating Phase Cannon Peak State ------------ > --- POWER ------------ Enhanced Fission Core Enhanced Fission Core > --- PROPULSION ------- Aluminum Leg Carbon-fiber Leg Carbon-fiber Leg Flexi-carbon Leg Flexi-carbon Leg Thunder Leg > --- UTILITY ---------- Advanced Heat Sink Advanced Heat Sink High-capacity Storage Unit Spectral Analyzer Improved Reaction Control System Hardened Medium Armor Plating Layered Medium Armor Plating > --- WEAPON ----------- Phase Cannon Phase Cannon > --- INVENTORY -------- Angular Momentum Engine Carbon-fiber Leg Compact Wheel Armored Huge Wheel Advanced Heat Sink Advanced Heat Sink Advanced Terrain Scanner Seismic Detector Layered Medium Armor Plating Improved Shield Generator Plasma Rifle Plasma Rifle Advanced Plasma Cannon Enhanced Gauss Cannon Heavy Missile Launcher Plasma Cutter Chainsword [Rating: 87] Favorites ----------- Power Cooled Ion Engine Engine Cooled Ion Engine Power Core Light Nuclear Core Propulsion Carbon-fiber Leg Treads Light Treads Leg Carbon-fiber Leg Utility Advanced Heat Sink Device Advanced Heat Sink Storage Large Storage Unit Processor Spectral Analyzer Hackware Hacking Suite Protection Layered Medium Armor Plating Weapon Heavy Particle Cannon Energy Gun Small Laser Energy Cannon Heavy Particle Cannon Ballistic Gun Improved Assault Rifle Launcher Heavy Missile Launcher Special Weapon Plasma Cutter Slashing Weapon Scythe Build | -11 -10 -10 -10 -9 -8 -8 -8 -8 -6 -6 -6 -6 -5 -5 ------- Run | Yrd Mat Min Exi Min Mat Sto Rec Scr Fac Low Low Dat Pro Fac Slots Evolved 10 | . . . . . 4 . . . 4 . . . . 2 Power 1 | . . . . . . . . . . . . . . 1 Propulsion 4 | . . . . . 2 . . . 1 . . . . 1 Utility 5 | . . . . . 2 . . . 3 . . . . . Weapon . | . . . . . . . . . . . . . . . Parts Attached 114 | 7 4 1 . 12 28 12 . 1 25 1 . . 2 21 Power 16 | 1 . 1 . 2 4 2 . . 1 . . . . 5 Engine 12 | 1 . 1 . 2 2 2 . . 1 . . . . 3 Core 4 | . . . . . 2 . . . . . . . . 2 Reactor . | . . . . . . . . . . . . . . . Propulsion 36 | 2 2 . . 2 10 5 . 1 5 . . . 2 7 Treads 3 | . . . . . . . . . 3 . . . . . Leg 33 | 2 2 . . 2 10 5 . 1 2 . . . 2 7 Wheel . | . . . . . . . . . . . . . . . Hover . | . . . . . . . . . . . . . . . Flight . | . . . . . . . . . . . . . . . Utility 41 | 2 2 . . 5 7 3 . . 14 . . . . 8 Device 19 | 1 . . . 4 2 1 . . 7 . . . . 4 Storage 4 | 1 1 . . . 1 . . . . . . . . 1 Processor 1 | . . . . . . . . . 1 . . . . . Hackware 1 | . . . . . . 1 . . . . . . . . Protection 16 | . 1 . . 1 4 1 . . 6 . . . . 3 Artifact . | . . . . . . . . . . . . . . . Weapon 21 | 2 . . . 3 7 2 . . 5 1 . . . 1 Energy Gun 8 | 2 . . . 3 3 . . . . . . . . . Energy Cannon 7 | . . . . . 2 . . . 4 . . . . 1 Ballistic Gun 2 | . . . . . 2 . . . . . . . . . Ballistic Cannon . | . . . . . . . . . . . . . . . Launcher 2 | . . . . . . . . . 1 1 . . . . Special Weapon 1 | . . . . . . 1 . . . . . . . . Impact Weapon . | . . . . . . . . . . . . . . . Slashing Weapon 1 | . . . . . . 1 . . . . . . . . Piercing Weapon . | . . . . . . . . . . . . . . . Special Melee Weapon . | . . . . . . . . . . . . . . . Unidentified Prototypes 8 | . . . . . 4 1 . . 1 . . . . 2 Parts Lost 31 | . . . . . 2 . . . 2 . . . 2 25 Power 5 | . . . . . . . . . . . . . . 5 Propulsion 12 | . . . . . . . . . . . . . 2 10 Utility 10 | . . . . . 1 . . . 1 . . . . 8 Weapon 4 | . . . . . 1 . . . 1 . . . . 2 Highest Loss Streak 15 | . . . . . 1 . . . 1 . . . 1 15 To Critical Strikes . | . . . . . . . . . . . . . . . Average Backups 14 | 1 7 11 12 14 14 15 15 15 14 15 15 15 14 16 Power . | . 1 1 1 . . 1 1 1 1 1 1 1 1 . Propulsion 3 | . 2 4 4 4 5 4 4 3 2 2 2 2 1 1 Utility 5 | . 3 5 5 6 4 4 5 5 6 6 6 6 6 7 Weapon 3 | . . . 1 2 4 4 4 4 3 5 5 5 5 6 Tool/Special . | . . . . . . . . . . . . . . . Unused Backups 37 | . . . . 4 7 3 . . 10 . . . . 13 Power 4 | . . . . . 2 1 . . . . . . . 1 Propulsion 6 | . . . . 2 . 1 . . . . . . . 3 Utility 12 | . . . . . 1 1 . . 7 . . . . 3 Weapon 14 | . . . . 1 4 . . . 3 . . . . 6 Tool/Special 1 | . . . . 1 . . . . . . . . . . Average Slot Usage (%) 99 | . 100 100 100 100 99 100 100 100 99 100 100 87 99 94 Engine 8 | . 14 14 14 14 3 7 9 9 6 6 6 6 6 8 Leg 32 | . 28 28 28 28 35 36 36 36 29 33 33 33 32 32 Device 21 | . 12 14 14 12 14 21 27 27 24 26 26 26 26 20 Storage 8 | . 14 14 14 14 9 9 9 9 6 6 6 6 6 4 Processor 2 | . . . . . . . . . 6 6 6 6 6 4 Protection 4 | . 1 . . 1 12 3 . . 7 6 6 6 6 6 Energy Gun 5 | . 28 28 28 28 7 . . . . . . . . . Energy Cannon 11 | . . . . . 7 17 18 18 12 12 13 1 13 10 Peak Build Rating 87 | 7 8 8 8 15 31 38 36 39 66 65 65 65 65 87 Average Rating 42 | 6 7 8 8 10 26 34 36 38 57 64 65 57 63 73 On Entrance 33 | . 7 8 8 8 13 31 36 36 39 65 65 65 65 61 Avg Prop Armor Cover (%) 4 | . . . . . 4 . . . 4 . . . . . Naked Turns 21 | . . . . . . . . . . . . . . 21 Heaviest Build 104 | 13 30 28 26 34 41 47 46 46 70 62 62 62 62 104 Greatest Support 103 | 20 20 20 20 20 61 60 55 62 80 80 80 80 80 103 Greatest Overweight (x) 2 | . 1 1 1 1 . . . . 1 . . . . 2 Average Overweight (x) . | . . 1 1 1 . . . . . . . . . . Largest Inventory Capacity 20 | 8 15 15 15 15 15 15 15 15 15 15 15 15 15 20 Average Capacity 15 | 7 14 15 15 15 15 15 15 15 15 15 15 15 15 19 Most Carried 20 | 4 11 12 13 15 15 15 15 15 15 15 15 15 15 20 Average Carried 14 | 1 7 11 12 14 14 14 15 14 14 14 15 15 14 17 Final Capacity 15 | 8 15 15 15 15 15 15 15 15 15 15 15 15 15 5 Final Carried 15 | 4 11 12 13 15 15 15 15 15 15 15 15 15 14 5 Class Distribution -------------------- 69% | Mutant 30% | Scavenger-Mutant Dominant Class ---------------- Mutant | -10/Materials Scavenger-Mutant | -10/Mines Scavenger-Mutant | -10/Exiles Scavenger-Mutant | -9/Mines Scavenger-Mutant | -8/Materials Mutant | -8/Storage Mutant | -8/Recycling Mutant | -8/Scraptown Mutant | -6/Factory Mutant | -6/Lower Caves Mutant | -6/Lower Caves Mutant | -6/Data Miner Mutant | -5/Proximity Caves Scavenger-Mutant | -5/Factory Resources | -11 -10 -10 -10 -9 -8 -8 -8 -8 -6 -6 -6 -6 -5 -5 ----------- Run | Yrd Mat Min Exi Min Mat Sto Rec Scr Fac Low Low Dat Pro Fac Matter Collected 2265 | 270 50 10 . 137 565 140 . 10 450 178 . . 54 401 Remotely . | . . . . . . . . . . . . . . . Salvage Created 6072 | 185 141 48 . 373 1187 733 255 . 1675 99 . . 213 1163 Parts 289 | 14 9 5 . 28 51 28 12 . 71 5 . . 13 53 Haulers Intercepted 3 | . 1 . . . 2 . . . . . . . . . Recyclers Shooed 5 | . . . . . . 3 . . 2 . . . . . Parts Field Recycled . | . . . . . . . . . . . . . . . Retrieved Matter . | . . . . . . . . . . . . . . . Parts Self-Destructed 18 | . . . . . . . . . . 6 . . 12 . Prevented . | . . . . . . . . . . . . . . . Parts Restored . | . . . . . . . . . . . . . . . Kills | -11 -10 -10 -10 -9 -8 -8 -8 -8 -6 -6 -6 -6 -5 -5 ------- Run | Yrd Mat Min Exi Min Mat Sto Rec Scr Fac Low Low Dat Pro Fac Combat Hostiles Destroyed 115 | . 2 3 . 9 19 13 6 . 25 5 . . 6 27 Guns 29 | . 2 3 . 9 15 . . . . . . . . . Cannons 60 | . . . . . 4 12 6 . 18 1 . . 6 13 AOE 20 | . . . . . . . . . 4 4 . . . 12 Classes Destroyed 13 | 2 3 1 . 1 3 . 1 . 2 . . . . . Worker 6 | . . . . . 1 1 . . 3 . . . . 1 Builder 3 | . . . . 1 . . . . 1 . . . . 1 Tunneler 5 | 4 . . . 1 . . . . . . . . . . Hauler 3 | . 1 . . . 2 . . . . . . . . . Recycler 9 | 1 . . . . 3 1 . . 3 . . . . 1 Operator 4 | . 1 . . . . 3 . . . . . . . . Watcher 5 | . . . . . 1 . . . 4 . . . . . Swarmer 41 | . . 3 . 3 3 3 2 . 10 2 . . 4 11 Grunt 38 | . 2 . . 6 10 5 1 . 6 2 . . . 6 Duelist 2 | . . . . . . . 1 . . 1 . . . . Sentry 17 | . . . . . 6 5 2 . 4 . . . . . Hunter 4 | . . . . . . . . . 1 . . . 1 2 Programmer 13 | . . . . . . . . . 4 . . . 1 8 Best Kill Streak 7 | 3 2 3 . 4 4 4 4 . 6 3 . . 3 7 Combat Bots Only 6 | . 1 3 . 3 4 3 4 . 4 3 . . 3 6 Max Kills in Single Turn 4 | 1 1 1 . 1 2 2 1 . 2 2 . . 1 4 Gunslinging . | . . . . . . . . . . . . . . . Exploded 4 | . . . . . . . . . 2 2 . . . 4 Melee . | . . . . . . . . . . . . . . . Uniques/NPCs Destroyed . | . . . . . . . . . . . . . . . Combat | -11 -10 -10 -10 -9 -8 -8 -8 -8 -6 -6 -6 -6 -5 -5 -------- Run | Yrd Mat Min Exi Min Mat Sto Rec Scr Fac Low Low Dat Pro Fac Hostile Shots Fired 795 | . 21 5 . 31 99 44 15 . 178 11 . . 27 364 Missed 238 | . 5 1 . 2 30 12 3 . 54 5 . . 6 120 Hits 557 | . 16 4 . 29 69 32 12 . 124 6 . . 21 244 Melee 3 | . . . . . . . 1 . . . . . . 2 Projectile 554 | . 16 4 . 29 69 32 11 . 124 6 . . 21 242 AOE 2 | . . . . . . . . . . . . . . 2 Critical Strikes 21 | . . . . 1 5 2 . . . . . . 1 12 Actively Blocked 1 | . . . . . 1 . . . . . . . . . Damage Taken 8009 | . 217 32 . 375 1037 476 181 . 1324 70 . . 263 4034 Core 1687 | . 58 9 . 145 200 49 8 . 149 12 . . 36 1021 Absorbed by Shields 1312 | . . . . . . . . . 375 27 . . 97 813 Redirected to Shielding 93 | . . . . . 93 . . . . . . . . . Regen/Repaired (Parts) 430 | . . . . . . . . 336 . . . . . 94 Core Remaining (%) 61 | 100 . . . 15 . . . 53 . . . . 76 . Volleys Fired 416 | 10 22 3 . 26 72 46 20 . 104 6 . . 17 90 Largest 2 | 2 2 2 . 2 2 2 2 . 2 2 . . 2 2 Hottest 170 | 80 80 80 . 131 143 143 143 . 165 160 . . 160 170 Shots Fired 765 | 20 44 6 . 52 140 87 37 . 189 8 . . 33 149 Gun 229 | 20 44 6 . 52 107 . . . . . . . . . Cannon 522 | . . . . . 33 87 37 . 186 3 . . 33 143 Launcher 14 | . . . . . . . . . 3 5 . . . 6 Special . | . . . . . . . . . . . . . . . Kinetic 39 | . . . . . 39 . . . . . . . . . Thermal 712 | 20 44 6 . 52 101 87 37 . 186 3 . . 33 143 Explosive 14 | . . . . . . . . . 3 5 . . . 6 Electromagnetic . | . . . . . . . . . . . . . . . Robot Hit Streak 19 | 9 5 2 . 7 17 13 12 . 19 5 . . 11 13 Robot Miss Streak 9 | 1 3 2 . 9 3 3 3 . 4 . . . 4 5 Penetration Max . | . . . . . . . . . . . . . . . Secondary Targets 2 | . . 1 . . 1 . . . . . . . . . Max Gunslinging Chain 1 | . . 1 . . 1 . . . . . . . . . Shots Hit Robots 475 | 14 26 3 . 28 102 58 21 . 123 5 . . 17 78 Core Hits 225 | 6 10 3 . 15 47 22 6 . 51 11 . . 8 46 Critical Kills 1 | . . . . . . 1 . . . . . . . . Critical Parts Destroyed . | . . . . . . . . . . . . . . . Critical Strikes 9 | . . . . 2 6 1 . . . . . . . . Burn 8 | . . . . 2 6 . . . . . . . . . Meltdown 1 | . . . . . . 1 . . . . . . . . Melee Attacks 2 | . . . . . . 2 . . . . . . . . Impact . | . . . . . . . . . . . . . . . Slashing 2 | . . . . . . 2 . . . . . . . . Piercing . | . . . . . . . . . . . . . . . Sneak Attacks . | . . . . . . . . . . . . . . . Combat Hostiles . | . . . . . . . . . . . . . . . Follow-up Attacks . | . . . . . . . . . . . . . . . Damage Inflicted 13383 | 156 299 35 . 435 1850 1378 490 . 3528 662 . . 542 4008 Guns 2225 | 156 299 35 . 435 1300 . . . . . . . . . Cannons 8544 | . . . . . 528 1346 472 . 3152 54 . . 542 2450 Explosions 2491 | . . . . . . . . . 365 608 . . . 1518 Melee . | . . . . . . . . . . . . . . . Ramming 123 | . . . . . 22 32 18 . 11 . . . . 40 Kinetic 356 | . . . . . 356 . . . . . . . . . Thermal 10413 | 156 299 35 . 435 1472 1346 472 . 3152 54 . . 542 2450 Explosive 2491 | . . . . . . . . . 365 608 . . . 1518 Electromagnetic . | . . . . . . . . . . . . . . . Impact . | . . . . . . . . . . . . . . . Slashing . | . . . . . . . . . . . . . . . Piercing . | . . . . . . . . . . . . . . . Highest Corruption 16 | . . . . . . . . . 4 4 4 4 7 16 Average Corruption 3 | . . . . . . . . . 2 4 4 4 6 5 Corruption Purged . | . . . . . . . . . . . . . . . Corruption Blocked . | . . . . . . . . . . . . . . . Effects 94 | . . . . . . . . . 35 11 3 2 12 31 Message Errors 17 | . . . . . . . . . 5 1 . 1 5 5 Matter Fused 22 | . . . . . . . . . 4 7 1 . 1 9 Heat Flow Errors 10 | . . . . . . . . . 3 1 . 1 2 3 Energy Discharges 7 | . . . . . . . . . 5 . . . 1 1 Parts Rejected 2 | . . . . . . . . . . . . . . 2 Data Loss (minor) 10 | . . . . . . . . . 4 1 1 . 1 3 Data Loss (major) 4 | . . . . . . . . . 3 . 1 . . . Misfires 12 | . . . . . . . . . 7 1 . . . 4 Alerts 6 | . . . . . . . . . 3 . . . 1 2 Weapon Failures 4 | . . . . . . . . . 1 . . . 1 2 Overload Shots . | . . . . . . . . . . . . . . . Overflow Damage 406 | . . . . . . 31 43 . 126 17 . . 4 185 Projectiles 286 | . . . . . . 26 43 . 88 . . . 4 125 Explosions 115 | . . . . . . . . . 38 17 . . . 60 Melee 5 | . . . . . . 5 . . . . . . . . Knockbacks 1 | . . . . . . . . . . . . . . 1 Impact 1 | . . . . . . . . . . . . . . 1 Kinetic . | . . . . . . . . . . . . . . . Secondary . | . . . . . . . . . . . . . . . Self-Inflicted Damage 183 | . . . . . . . . . . . . . . 183 Shots 3 | . . . . . . . . . . . . . . 3 Rammed 1 | . . . . . . . . . . . . . . 1 Targets Rammed 18 | . . . . 2 4 4 1 . 4 . . . . 3 Kicked 17 | . . . . 2 4 4 1 . 4 . . . . 2 Crushed . | . . . . . . . . . . . . . . . Highest Temperature 517 | 108 297 54 . 517 365 17 . . 229 124 . 192 181 174 Average Temperature 99 | 44 127 29 . 151 96 12 . . 58 93 . 106 97 29 Received Heat Transfer 1736 | . 123 . . 165 558 207 54 . 249 12 . . . 368 Effects 15 | . 3 . . 8 4 . . . . . . . . . Shutdowns 2 | . . . . 2 . . . . . . . . . . Energy Bleed 1 | . 1 . . . . . . . . . . . . . Interference 7 | . 2 . . 1 4 . . . . . . . . . Damage (major) 4 | . . . . 4 . . . . . . . . . . Damage (core) 1 | . . . . 1 . . . . . . . . . . Siege Activations . | . . . . . . . . . . . . . . . Martial Activations . | . . . . . . . . . . . . . . . Shielding Activations . | . . . . . . . . . . . . . . . Robots Disrupted . | . . . . . . . . . . . . . . . Combat Hostiles . | . . . . . . . . . . . . . . . Robots Corrupted 1 | . . . . . . 1 . . . . . . . . Combat Hostiles . | . . . . . . . . . . . . . . . Parts Fried 3 | . . . . . . 3 . . . . . . . . Impact Corruptions 1 | . . . . . . 1 . . . . . . . . Robots Melted 6 | . . . . . . 1 . . 3 . . . . 2 Combat Hostiles 6 | . . . . . . 1 . . 3 . . . . 2 Parts Melted 55 | . 1 1 . 3 7 11 . . 18 . . . 1 13 Heat Transferred 16790 | 350 675 75 . 1089 3330 2183 686 . 4887 74 . . 666 2775 Parts Sabotaged . | . . . . . . . . . . . . . . . Parts Stolen . | . . . . . . . . . . . . . . . Parts Stripped . | . . . . . . . . . . . . . . . Power Chain Reactions . | . . . . . . . . . . . . . . . Alert | -11 -10 -10 -10 -9 -8 -8 -8 -8 -6 -6 -6 -6 -5 -5 ------- Run | Yrd Mat Min Exi Min Mat Sto Rec Scr Fac Low Low Dat Pro Fac Maximum Alert Level 2 | . . . . . 1 1 . . 1 . . . . 2 Low Security (%) 69 | 100 100 100 . 100 68 96 100 . 72 . . . . . Level 1 20 | . . . . . 31 3 . . 27 . . . . 41 Level 2 10 | . . . . . . . . . . . . . . 58 Level 3 . | . . . . . . . . . . . . . . . Level 4 . | . . . . . . . . . . . . . . . Level 5 . | . . . . . . . . . . . . . . . High Security . | . . . . . . . . . . . . . . . Max Security . | . . . . . . . . . . . . . . . Peak Influence 666 | 10 40 70 . 117 321 211 188 . 309 . . . . 666 Initial 634 | . . . . . 39 119 49 . . . . . . 634 Average 169 | 2 4 46 . 24 138 100 124 . 146 . . . . 454 Influence Increases 4747 | 25 62 70 . 230 685 531 332 . 954 135 . . 165 1558 Destroy 0b10 Robot/C 2300 | . 40 60 . 180 380 260 120 . 500 100 . . 120 540 Destroy 0b10 Robot/NC 175 | 25 10 . . 10 35 25 . . 55 . . . . 15 Destroy Leader 506 | . 12 10 . 40 106 70 . . 128 20 . . 30 90 Successful Hack 250 | . . . . . 9 59 8 . 136 . . . . 38 Select Force Hacks 180 | . . . . . . . 180 . . . . . . . Disable Machine 195 | . . . . . 15 75 15 . 90 . . . . . Destroy Structure 226 | . . . . . 5 12 9 . 30 . . . . 170 Advance Influence 600 | . . . . . . . . . . . . . . 600 Partial Spotted 15 | . . . . . . . . . 15 . . . . . Lose Combat Pursuer 300 | . . . . . 135 30 . . . 15 . . 15 105 Influence Decreases 4215 | 25 62 20 50 129 502 686 358 103 671 359 59 . 110 1081 Entered New Map 598 | . . . 50 . 62 165 80 103 . 105 12 . . 21 Time Decay 2707 | 25 62 20 . 129 420 351 278 . 511 254 47 . 100 510 Search Patrol Dispatched 300 | . . . . . . . . . . . . . . 300 Lost Part 290 | . . . . . 20 . . . 10 . . . 10 250 Purge Threat 320 | . . . . . . 170 . . 150 . . . . . Squads Dispatched 25 | . . . . . 3 1 . . 11 . . . . 10 Investigation 10 | . . . . . 2 . . . 5 . . . . 3 Extermination 8 | . . . . . . . . . 5 . . . . 3 Reinforcement 7 | . . . . . 1 1 . . 1 . . . . 4 Assault . | . . . . . . . . . . . . . . . Garrison . | . . . . . . . . . . . . . . . Intercept . | . . . . . . . . . . . . . . . Searches Triggered 3 | . . . . . . . . . . . . . . 3 Data Miner Redirects 1 | . . . . . . . . . . . . . . 1 Construction Impeded 2 | . . . . . . . . . . . . . . 2 Haulers Reinforced 1 | . . . . . . . . . . . . . . 1 Active Scanning Responses . | . . . . . . . . . . . . . . . Cargo Convoy Interrupts . | . . . . . . . . . . . . . . . Stealth | -11 -10 -10 -10 -9 -8 -8 -8 -8 -6 -6 -6 -6 -5 -5 --------- Run | Yrd Mat Min Exi Min Mat Sto Rec Scr Fac Low Low Dat Pro Fac Distress Signals 14 | . . . . . 3 2 1 . 2 . . . 2 4 Communications Jammed . | . . . . . . . . . . . . . . . Distress Signals . | . . . . . . . . . . . . . . . Times Spotted 190 | . 9 3 . 10 33 23 6 . 34 6 . . 10 56 Peak Tracking Total 15 | . 3 2 . 3 6 3 5 . 4 3 . . 4 15 Tactical Retreats 12 | . . . . . 4 2 . . . 1 . . 1 4 Traps | -11 -10 -10 -10 -9 -8 -8 -8 -8 -6 -6 -6 -6 -5 -5 ------- Run | Yrd Mat Min Exi Min Mat Sto Rec Scr Fac Low Low Dat Pro Fac Traps Triggered 5 | . . . . . 1 1 . . 3 . . . . . Indirectly . | . . . . . . . . . . . . . . . Trap Hack Attempts . | . . . . . . . . . . . . . . . Triggered . | . . . . . . . . . . . . . . . Disarmed . | . . . . . . . . . . . . . . . Reprogrammed . | . . . . . . . . . . . . . . . Reused . | . . . . . . . . . . . . . . . Traps Extracted . | . . . . . . . . . . . . . . . Installed . | . . . . . . . . . . . . . . . Triggered . | . . . . . . . . . . . . . . . Machines | -11 -10 -10 -10 -9 -8 -8 -8 -8 -6 -6 -6 -6 -5 -5 ---------- Run | Yrd Mat Min Exi Min Mat Sto Rec Scr Fac Low Low Dat Pro Fac Machines Disabled 13 | . . . . . 1 5 1 . 6 . . . . . Max in Single Turn 2 | . . . . . 1 1 1 . 2 . . . . . Garrison Access 1 | . . . . . . 1 . . . . . . . . Machines Repaired . | . . . . . . . . . . . . . . . Machines Dismantled 1 | . . . . . . 1 . . . . . . . . Machines Sabotaged . | . . . . . . . . . . . . . . . Overloaded Fab Kills . | . . . . . . . . . . . . . . . Hacking | -11 -10 -10 -10 -9 -8 -8 -8 -8 -6 -6 -6 -6 -5 -5 --------- Run | Yrd Mat Min Exi Min Mat Sto Rec Scr Fac Low Low Dat Pro Fac Machines Accessed 65 | . 3 . 3 . 3 9 13 2 17 . . 4 . 11 Terminals 29 | . 2 . . . 2 8 5 . 8 . . . . 4 Fabricators 5 | . . . . . . . . . 3 . . . . 2 Repair Stations 2 | . . . . . . . . . . . . . . 2 Recycling Units 14 | . 1 . . . . . 6 . 5 . . . . 2 Scanalyzers 2 | . . . . . 1 . . . 1 . . . . . Garrison Access 2 | . . . . . . 1 . . . . . . . 1 Total Hacks 187 | . 7 . 7 . 8 31 25 3 45 . . 30 . 31 Successful 124 | . 1 . 7 . 5 21 17 3 23 . . 30 . 17 Failed 63 | . 6 . . . 3 10 8 . 22 . . . . 14 Catastrophic 9 | . 2 . . . 1 . . . 5 . . . . 1 Database Lockouts . | . . . . . . . . . . . . . . . Manual 110 | . 7 . . . 3 21 19 . 38 . . . . 22 Terminals 95 | . 4 . . . 5 29 13 . 31 . . . . 13 Fabricators 11 | . . . . . . . . . 6 . . . . 5 Repair Stations 5 | . . . . . . . . . . . . . . 5 Recycling Units 20 | . 3 . . . . . 6 . 6 . . . . 5 Scanalyzers 5 | . . . . . 3 . . . 2 . . . . . Garrison Access 5 | . . . . . . 2 . . . . . . . 3 Terminal Hacks 63 | . . . 7 . 2 11 6 3 3 . . 30 . 1 Record 27 | . . . 7 . . . 6 2 . . . 11 . 1 Part Schematic 16 | . . . . . . 4 . . . . . 12 . . Robot Schematic 4 | . . . . . . . . . . . . 4 . . Prototype ID Bank 3 | . . . . . . . . . . . . 3 . . Open Door 2 | . . . . . . 2 . . . . . . . . Branch Access Points 1 | . . . . . 1 . . . . . . . . . Terminal Index 2 | . . . . . 1 1 . . . . . . . . Unreport Threat 3 | . . . . . . 2 . . 1 . . . . . Locate Traps 2 | . . . . . . 1 . . 1 . . . . . Transport Status 1 | . . . . . . 1 . . . . . . . . Zone Layout 1 | . . . . . . . . . 1 . . . . . Proto ID Catalog 1 | . . . . . . . . 1 . . . . . . Fabricator Hacks 2 | . . . . . . . . . 1 . . . . 1 Network Status 2 | . . . . . . . . . 1 . . . . 1 Repair Station Hacks 4 | . . . . . . . . . . . . . . 4 Scan Component 2 | . . . . . . . . . . . . . . 2 Repair 2 | . . . . . . . . . . . . . . 2 Recycling Unit Hacks . | . . . . . . . . . . . . . . . Scanalyzer 4 | . . . . . 3 . . . 1 . . . . . Retrieve Study 4 | . . . . . 3 . . . 1 . . . . . Garrison Access Hacks 1 | . . . . . . 1 . . . . . . . . Seal Access 1 | . . . . . . 1 . . . . . . . . Unauthorized Hacks 50 | . 1 . . . . 9 11 . 18 . . . . 11 Terminals 30 | . . . . . . 9 5 . 10 . . . . 6 Botnet 8 | . . . . . . 3 . . 3 . . . . 2 Operators 4 | . . . . . . 1 . . 2 . . . . 1 Skim 18 | . . . . . . 5 5 . 5 . . . . 3 Fabricators 5 | . . . . . . . . . 3 . . . . 2 Report 2 | . . . . . . . . . 1 . . . . 1 Haulers 3 | . . . . . . . . . 2 . . . . 1 Repair Stations 1 | . . . . . . . . . . . . . . 1 Mechanics 1 | . . . . . . . . . . . . . . 1 Recycling Units 14 | . 1 . . . . . 6 . 5 . . . . 2 Recyclers 2 | . 1 . . . . . . . . . . . . 1 Tunnel 6 | . . . . . . . 6 . . . . . . . Fedlink 6 | . . . . . . . . . 5 . . . . 1 Scanalyzers . | . . . . . . . . . . . . . . . Garrison Access . | . . . . . . . . . . . . . . . Data Cores Recovered 3 | . 1 . . . . 2 . . . . . . . . Used 2 | . 1 . . . . 1 . . . . . . . . Hacking Detections 40 | . 3 . . . 3 8 5 . 13 . . . . 8 Full Trace Events 3 | . . . . . 1 . . . . . . . . 2 Feedback Events . | . . . . . . . . . . . . . . . Feedback Blocked . | . . . . . . . . . . . . . . . Robot Schematics Acquired 4 | . . . . . . . . . . . . 4 . . Robots Built . | . . . . . . . . . . . . . . . Authchips . | . . . . . . . . . . . . . . . Time . | . . . . . . . . . . . . . . . Total Robot Build Rating . | . . . . . . . . . . . . . . . Part Schematics Acquired 16 | . . . . . . 4 . . . . . 12 . . Parts Built . | . . . . . . . . . . . . . . . Authchips . | . . . . . . . . . . . . . . . Time . | . . . . . . . . . . . . . . . Total Part Build Rating . | . . . . . . . . . . . . . . . Part Studies Acquired 4 | . . . . . 3 . . . 1 . . . . . Parts Repaired 1 | . . . . . . . . . . . . . . 1 Time 88 | . . . . . . . . . . . . . . 88 Parts Recycled . | . . . . . . . . . . . . . . . Recycled Matter . | . . . . . . . . . . . . . . . Retrieved Matter . | . . . . . . . . . . . . . . . Retrieved Components . | . . . . . . . . . . . . . . . Parts Scanalyzed . | . . . . . . . . . . . . . . . Part Schematics Acquired . | . . . . . . . . . . . . . . . Parts Damaged . | . . . . . . . . . . . . . . . Bothacking | -11 -10 -10 -10 -9 -8 -8 -8 -8 -6 -6 -6 -6 -5 -5 ------------ Run | Yrd Mat Min Exi Min Mat Sto Rec Scr Fac Low Low Dat Pro Fac Used RIF Installer . | . . . . . . . . . . . . . . . Robots Hacked . | . . . . . . . . . . . . . . . Non-combat . | . . . . . . . . . . . . . . . Combat . | . . . . . . . . . . . . . . . Robot Hacks Applied . | . . . . . . . . . . . . . . . Relay Couplers Released . | . . . . . . . . . . . . . . . Fabnet Peak Effective % . | . . . . . . . . . . . . . . . Robots Rewired . | . . . . . . . . . . . . . . . Allies Hacked . | . . . . . . . . . . . . . . . Hacks Repelled . | . . . . . . . . . . . . . . . Allies | -11 -10 -10 -10 -9 -8 -8 -8 -8 -6 -6 -6 -6 -5 -5 -------- Run | Yrd Mat Min Exi Min Mat Sto Rec Scr Fac Low Low Dat Pro Fac Total Allies 1 | . . . . 1 . . . . . . . . . . Largest Group 1 | . . . . 1 . . . . . . . . . . Highest-Rated Group 31 | . . . . 31 . . . . . . . . . . Highest-Rated Ally 31 | . . . . 31 . . . . . . . . . . Total Orders . | . . . . . . . . . . . . . . . Ally Attacks 2 | . . . . 2 . . . . . . . . . . Total Damage . | . . . . . . . . . . . . . . . Kills . | . . . . . . . . . . . . . . . Allies Corrupted . | . . . . . . . . . . . . . . . Allies Melted . | . . . . . . . . . . . . . . . Intel | -11 -10 -10 -10 -9 -8 -8 -8 -8 -6 -6 -6 -6 -5 -5 ------- Run | Yrd Mat Min Exi Min Mat Sto Rec Scr Fac Low Low Dat Pro Fac Active Infowar (turns) 6933 | 63 533 58 520 414 497 . . . 2329 540 146 108 364 1361 Optics 4848 | . . . . . . . . . 2329 540 146 108 364 1361 Terrain 56 | . . . . . . . . . 56 . . . . . Seismic 6256 | 63 533 58 520 414 497 . . . 2254 540 146 108 364 759 Robot Analysis Total . | . . . . . . . . . . . . . . . Derelict Logs Recovered 4 | . . . . 1 . . . . . 2 . . 1 . Drone Launches . | . . . . . . . . . . . . . . . Drone Recoveries . | . . . . . . . . . . . . . . . Exploration | -11 -10 -10 -10 -9 -8 -8 -8 -8 -6 -6 -6 -6 -5 -5 ------------- Run | Yrd Mat Min Exi Min Mat Sto Rec Scr Fac Low Low Dat Pro Fac Turns Passed 11133 | 118 609 58 520 543 1143 1003 601 1669 2329 540 146 108 364 1382 Spaces Moved 6655 | 63 252 25 274 220 638 496 445 1397 1425 252 136 97 242 693 Core 43 | 2 . . . . . . . . . . . . . 41 Treads . | . . . . . . . . . . . . . . . Legs 6612 | 61 252 25 274 220 638 496 445 1397 1425 252 136 97 242 652 Wheels . | . . . . . . . . . . . . . . . Hover . | . . . . . . . . . . . . . . . Flight . | . . . . . . . . . . . . . . . Fastest Speed 50 | 50 120 190 190 190 107 115 116 116 105 108 108 108 108 50 Average Speed 125 | 117 188 190 190 190 113 117 116 118 118 108 108 108 108 126 Slowest Speed 220 | 120 190 190 190 190 127 120 116 120 175 108 108 108 108 220 Overloaded Moves . | . . . . . . . . . . . . . . . Propulsion Burnouts . | . . . . . . . . . . . . . . . Robots Hopped . | . . . . . . . . . . . . . . . Potential Cave-ins . | . . . . . . . . . . . . . . . Cave-ins Triggered . | . . . . . . . . . . . . . . . Exploration Rate (%) 49 | 4 47 8 69 42 49 71 82 93 45 45 41 77 42 31 Regions Visited 14 Branch Regions 10 Pre-discovered Areas 17 | . . . 1 1 . 2 7 1 4 . . 1 . . Known Exits Taken 4 | . . . . . 1 . . 1 1 . . . 1 . Unknown Exits Taken 10 | 1 1 1 1 1 . 1 1 . . 1 1 1 . . Scrap Searched 8 | . . . . 2 . . . 4 . 2 . . . . Spaces Dug 44 | . . . . . . 5 1 . 12 . . . 1 25 Terrain Destroyed 222 | . . . . . 2 11 10 . 36 55 . . 11 97 Melee . | . . . . . . . . . . . . . . . Projectile 114 | . . . . . 2 11 10 . 26 1 . . 11 53 AOE 108 | . . . . . . . . . 10 54 . . . 44 Terrain Rammed . | . . . . . . . . . . . . . . . Walls Destroyed . | . . . . . . . . . . . . . . . Machines Disabled . | . . . . . . . . . . . . . . . Actions | -11 -10 -10 -10 -9 -8 -8 -8 -8 -6 -6 -6 -6 -5 -5 --------- Run | Yrd Mat Min Exi Min Mat Sto Rec Scr Fac Low Low Dat Pro Fac Total 8632 | 83 342 30 274 294 920 806 492 1408 1888 511 135 100 310 1039 Wait 1204 | . 53 . . 15 116 227 24 7 265 248 . . 49 200 Move 6641 | 62 251 24 273 219 637 495 444 1396 1424 251 135 96 241 693 Hop . | . . . . . . . . . . . . . . . Pick Up 73 | 4 8 1 1 6 17 3 . 1 19 1 . . 1 11 Fast Attach 36 | 7 . . . 2 5 1 . . 8 . . 2 . 11 Attach 24 | . 1 . . . 6 . . 1 5 . . . 2 9 Detach 5 | . 1 . . . . . . . 2 . . . . 2 Swap 110 | . 4 1 . 12 35 13 . 1 26 4 . . . 14 Drop 91 | . 2 1 . 12 28 7 . 2 31 1 . 2 . 5 Fire 416 | 10 22 3 . 26 72 46 20 . 104 6 . . 17 90 Melee 2 | . . . . . . 2 . . . . . . . . Ram 1 | . . . . . . . . . . . . . . 1 Kick 17 | . . . . 2 4 4 1 . 4 . . . . 2 Crush . | . . . . . . . . . . . . . . . Escape Stasis . | . . . . . . . . . . . . . . . Rewire 4 | . . . . . . . 3 . . . . . . 1 Trap . | . . . . . . . . . . . . . . . Miscellaneous 8 | . . . . . . 8 . . . . . . . . Route ------- -11/Scrapyard -10/Materials -10/Mines -10/Exiles (discovered 2 exits: [*Min x2]) -9/Mines -8/Materials (discovered 2 exits: *Sto x2) -8/Storage (discovered 2 exits: Fac / *Rec) -8/Recycling (discovered 2 exits: *Fac / *Scr) -8/Scraptown (discovered 2 exits: *Fac x2) -6/Factory (discovered 4 exits: Fac x2 / *Low x2) -6/Lower Caves -6/Lower Caves -6/Data Miner -5/Proximity Caves -5/Factory (discovered 3 exits: *Fac / Upp x2) History --------- Turn | Location | Event 12 | -11/Scrapyard | Discovered new exit (range 16) 119 | -11/Scrapyard | Entered Materials 300 | -10/Materials | Build established: Mutant 687 | -10/Materials | Discovered new exit (range 12) 728 | -10/Materials | Entered Mines 777 | -10/Mines | Deemed a non-threat by the Exiles lab entrance 778 | -10/Mines | Discovered new exit (range 5) 786 | -10/Mines | Entered Exiles 811 | -10/Exiles | Discovered new exit (range 15) 834 | -10/Exiles | Met 8R-AWN 866 | -10/Exiles | Met EX-HEX 933 | -10/Exiles | Met EX-DEC 976 | -10/Exiles | Learned location of Zion (-7) 1020 | -10/Exiles | Met EX-BIN 1056 | -10/Exiles | Build established: Scavenger-Mutant 1285 | -10/Exiles | Discovered new exit (range 12) 1306 | -10/Exiles | Entered Mines 1457 | -9/Mines | Learned location of Storage (-8) 1525 | -9/Mines | Received a Mining Laser from a helpful Derelict 1622 | -9/Mines | Core integrity fell below 50% 1817 | -9/Mines | Core integrity fell below 20% 1827 | -9/Mines | Discovered new exit (range 6) 1849 | -9/Mines | Entered Materials 1849 | -8/Materials | Evolved 4 slots: Propulsion x2, Utility x2 2249 | -8/Materials | Discovered new exit (range 16) 2705 | -8/Materials | Identified exit to Storage 2992 | -8/Materials | Entered Storage 3304 | -8/Storage | Used back door to open Recycling access 3304 | -8/Storage | Discovered new exit (range 5) 3557 | -8/Storage | Build established: Mutant 3605 | -8/Storage | Identified exit to Factory 3683 | -8/Storage | Loaded intel: 9 trap records 3750 | -8/Storage | Learned Factory terminal intel 3805 | -8/Storage | Learned Factory recycling unit intel 3931 | -8/Storage | Learned location of Lower Caves (-6) 3984 | -8/Storage | Learned location of 3 exits from Factory 3995 | -8/Storage | Entered Recycling 3996 | -8/Recycling | Identified exit to Factory 4417 | -8/Recycling | Learned Factory emergency access door positions 4450 | -8/Recycling | Learned location of 1 exit from Extension 4475 | -8/Recycling | Learned 4 Lower Caves zone layouts 4516 | -8/Recycling | Learned 8 Factory zone layouts 4549 | -8/Recycling | Learned 4 Factory zone layouts 4561 | -8/Recycling | Scanned before Scraplab entrance 4592 | -8/Recycling | Discovered new exit (range 4) 4596 | -8/Recycling | Entered Scraptown 4842 | -8/Scraptown | Discovered exit to Factory (range 7) 4949 | -8/Scraptown | Visited SPCMW 4999 | -8/Scraptown | Visited TADAMA 5020 | -8/Scraptown | Visited UFD Registry 5020 | -8/Scraptown | Registered with UFD as "Shockforce" 5041 | -8/Scraptown | Visited Fellowship of the Rings 5066 | -8/Scraptown | Visited The Evicted 5089 | -8/Scraptown | Visited CR-KLE's Repair Center 5171 | -8/Scraptown | Visited Comm Corps 5425 | -8/Scraptown | Visited Research Penetration Think Tank 5451 | -8/Scraptown | Visited A0-MCA Data Center 5458 | -8/Scraptown | Given a B rating by A0-MCA 5622 | -8/Scraptown | Visited Infowarlord's Domain 5628 | -8/Scraptown | Found Spectral Analyzer 5647 | -8/Scraptown | Visited Scrap Suit Storage 5668 | -8/Scraptown | Visited Scrapoid Research Area 5681 | -8/Scraptown | Visited Science Guys 5797 | -8/Scraptown | Discovered exit to Factory (range 3) 5838 | -8/Scraptown | Visited Observation Area 5887 | -8/Scraptown | Visited Chapter 10 5914 | -8/Scraptown | Visited LU-1G1's Boring Crew 6037 | -8/Scraptown | CR-KLE repaired 8 parts 6185 | -8/Scraptown | Met Optimus 6185 | -8/Scraptown | Accepted into 0bPrime 6265 | -8/Scraptown | Entered Factory 6265 | -6/Factory | Evolved 4 slots: Propulsion x1, Utility x3 6266 | -6/Factory | Identified exit to Lower Caves 6267 | -6/Factory | Identified exit to Factory 6270 | -6/Factory | Loaded intel: 26 terminal locations 6271 | -6/Factory | Loaded intel: 8 recycling unit locations 7377 | -6/Factory | Learned Factory terminal intel 7436 | -6/Factory | Learned 4 Lower Caves zone layouts 7444 | -6/Factory | Loaded intel: 8 recycling unit locations 7524 | -6/Factory | Learned 2 Proximity Caves zone layouts 7551 | -6/Factory | Learned 4 Proximity Caves zone layouts 7566 | -6/Factory | Learned location of Archives (-4) 7571 | -6/Factory | Learned Extension terminal intel 7615 | -6/Factory | Learned location of 2 exits from Factory 7652 | -6/Factory | Learned location of Warlord (-4) 7967 | -6/Factory | Learned location of Protoforge (-2) 8594 | -6/Factory | Entered Lower Caves 8599 | -6/Lower Caves | Learned Factory emergency access door positions 8641 | -6/Lower Caves | Learned Factory trap positions 8847 | -6/Lower Caves | Discovered new exit (range 14) 9134 | -6/Lower Caves | Entered another Lower Caves area 9135 | -6/Lower Caves | Encountered a Warlord checkpoint 9277 | -6/Lower Caves | Discovered new exit (range 3) 9280 | -6/Lower Caves | Entered Data Miner 9282 | -6/Data Miner | Discovered new exit (range 6) 9293 | -6/Data Miner | Met Data Miner 9329 | -6/Data Miner | Learned location of Section 7 (-2) 9329 | -6/Data Miner | Acquired the access code to Warlord's prototype stash 9346 | -6/Data Miner | Received God Mode back door access code from Data Miner 9388 | -6/Data Miner | Entered Proximity Caves 9464 | -5/Proximity Caves | Spotter reported a threat 9471 | -5/Proximity Caves | Spotter reported a threat 9524 | -5/Proximity Caves | Spotter reported a threat 9541 | -5/Proximity Caves | Spotted B-75 Beast 9626 | -5/Proximity Caves | Spotter reported a threat 9717 | -5/Proximity Caves | Learned Factory stockpile data 9733 | -5/Proximity Caves | Discovered exit to Factory (range 15) 9752 | -5/Proximity Caves | Entered Factory 9752 | -5/Factory | Evolved 2 slots: Power x1, Propulsion x1 9753 | -5/Factory | Identified exit to Upper Caves 9754 | -5/Factory | Identified exit to Factory 9755 | -5/Factory | Loaded intel: 101 trap records 9758 | -5/Factory | Loaded intel: 26 terminal locations 9935 | -5/Factory | Loaded intel: 8 recycling unit locations 9961 | -5/Factory | Incoming investigation squad redirected 10052 | -5/Factory | Search patrols dispatched 10136 | -5/Factory | Repaired Phase Cannon 10290 | -5/Factory | Spotted B-75 Beast 10352 | -5/Factory | Search patrols dispatched 10652 | -5/Factory | Search patrols dispatched 10926 | -5/Factory | Lost 8 parts (3p3n2u) 11025 | -5/Factory | Build established: Scavenger-Mutant 11052 | -5/Factory | System corruption reached 10% 11108 | -5/Factory | Core integrity fell below 50% 11113 | -5/Factory | Released all parts (3) 11132 | -5/Factory | Core integrity fell below 20% 11134 | -5/Factory | Destroyed by C-35 Carver with Carbide Saw Last Messages --------------- 11127_ Slug penetrates Wall. 11128_ U-05 Engineer lays Concrete. 11128_ K-01 Serf collects debris. 11129_ System corrupted: Component data lost. 11129_ K-01 Serf collects debris. 11129_ U-05 Engineer lays Concrete. 11129_ K-01 Serf collects debris. 11129_ Penetrated by Slug. 11130_ Slug penetrates K-01 Serf. 11130_ U-05 Engineer lays Concrete. 11131_ Slug penetrates Wall. 11131_ Penetrated by Slug. 11131_ U-05 Engineer lays Concrete. 11132_ K-01 Serf collects debris. 11132_ U-05 Engineer lays Concrete. 11132_ C-35 Carver destroyed. 11133_ U-05 Engineer lays Concrete. 11133_ Penetrated by Slug. 11134_ Slammed into H-71 Marshal. 11134_ Penetrated by Slug. Map ----- +----------------------------------------------------+ | " ### " = ##########????????????????????????? | | """" % # #????????????????????????? | | " " * " """ #????????????????????????? | | " " R " """ #????????????????????????? | | " " """ #????????????????????????? | | " #????????????????????????? | | " " " " #????"""?????????????????? | | " " "Y" #????"T"?????????????????? | | " " """ #????????????????????????? | | " ! #???o????????????????????? | | " == #########????????????????????????? | | " /!| ##########???????????????????????? | | " ]!![! #???????????????????????^ | | !=][ ! #???????????????????????? | | ## * =! +???????????????????????? | | #"" =! """ #???????????????????????? | | %!= =! """ #???????????????????????? | | [[[ """ #???????????????????????? | | ! = = #???????????????????????? | | [ %%= #???????????????????????? | | C% #############?????????????????? | | ## ## #?????????????????? | | ? ;## ######????????????? | | ? " ! ??????????? | | #"" h ^c #?????????????????? | | " u %^= c@H #?????????????????? | | " k ^^ Y #?????????????????? | | " ^^ #?????????????????? | | " k #### #?????????????????? | | # F #??# #?????????????????? | | # " #??## ##?????????????????? | | # "" ????# #??????????????????? | | # "" ????# #??????????????????? | | ? ? ????# #??????????????????? | | ??? ? ????# +??????????????????? | | ??? ????####+##+????# #??????????????????? | | ??? ????????????????# k #??????????????????? | | ??? ????????????????# #??????????????????? | | ??? ????????????????# k #??????????????????? | | ??????????????????????# ???????????????????? | | ??????????????????????? ?????????????????????? | | ?????????????????????????????????????????????????? | | ?????????????????????????????????????????????????? | | ?????????????????????????????????????????????????? | | ?????????????????????????????????????????????????? | | ?????????????????????????????????????????????????? | | ?????????????????????????????????????????????????? | | ?????????????????????????????????????????????????? | | ?????????????????????????????????????????????????? | | ?????????????????????????????????????????????????? | +----------------------------------------------------+ Best States ------------- Heat Dissipation 78 Coolant Potential 50 Energy Generation 37 Energy Capacity 600 Matter Stores 300 Matter Capacity 300 Sight Range 24 Terrain Scan Range 20 Terrain Scan Density 10 Armor Coverage 450 Propulsion Shielding 66 Evasion (%) 70 Recoil Reduction 1 Offensive Hacking 10 Item Schematics ----------------- Seismic Detector | -8/Storage | Hacked Plasma Cutter | -8/Storage | Hacked Imp. Heat Sink | -8/Storage | Hacked Carbon-fiber Leg | -8/Storage | Hacked Combat Drone Bay | -6/Data Miner | Free Lgt. Regenerative Plating | -6/Data Miner | Free Cld. Nuclear Pulse Thruster | -6/Data Miner | Free Adv. EM Disruption Field | -6/Data Miner | Free Hvy. Proton Cannon | -6/Data Miner | Free Hvy. Siege Treads | -6/Data Miner | Free Nanoactuators | -6/Data Miner | Free Force Lance | -6/Data Miner | Free Adv. Field Recycling Unit | -6/Data Miner | Free Adv. Transmission Jammer | -6/Data Miner | Free Particle Reactor | -6/Data Miner | Free Enh. Force Lance | -6/Data Miner | Free Robot Schematics ------------------ L-41 Fighter | -6/Data Miner | Free Y-64 Sentinel | -6/Data Miner | Free S-27 Virus | -6/Data Miner | Free X-72 Disruptor | -6/Data Miner | Free Fabricated ------------ Nothing Repaired ---------- Phase Cannon | 27% | -5/Factory Studied --------- Aluminum Leg | -8/Materials | Hacked Pulse Rifle | -8/Materials | Hacked Titanium Leg | -8/Materials | Hacked Carbon-fiber Leg | -6/Factory | Hacked Alien Tech Used ----------------- None Achievements -------------- Civilization 2243 DATA ERROR: Steam Global Achievement% Deductive Reasoning Fancy Inventory For Emergencies Only Heavy Suspicion Hulk Smash I Have A Map? Into The Breach Item+ Link The Feds Live, Flee, And Rebuild Look Less Dangerous Next Time Network Effect Organ Harvest Spot Them First Suspicious That Tickles There's More Where That Came From Throw Away The Key Well Done You May Approach The Wall Challenges ------------ None Game ------ Seed AluminumLinearChronowheel Manual? 0 Play Time 02:37:38 Cumulative 163.0 hours Start 2025.10.22 @ 13:16:40 End 2025.11.06 @ 17:25:14 Sessions 18 Manual Loads 0 Difficulty Rogue Special Mode None Game No. 84 Rogue 80 Adventurer 2 Explorer 2 Win Type - Total 2 Types 1/0/1/0/0/0/0/0/0/0 Lore% 63 Gallery% 62 Achievement% 33 Wizard Run 0 Options --------- Layout 0 ASCII 0 Keyboard 1 Movement Arrows Keybinds 0 Fullscreen 2 Font 18/Terminus Map View 76x50 Zoom Use 0% Tactical HUD 1 Map Filters NONE Filters NONE Steam 1 RUN: 06421606-b827-41ee-9118-7a0fb8788770